fUSD/lending_fUSD_20260606
["ID","MTS","AMOUNT","RATE_DAILY","PERIOD"]
[424294679,1780755049000,-200.0,0.00027783,2]
[424294681,1780755049000,-200.0,0.00027783,2]
[424294684,1780755049000,-200.0,0.00027783,2]
[424294686,1780755049000,-200.0,0.00027783,2]
[424294685,1780755049000,-200.0,0.00027783,2]
[424294687,1780755049000,-200.0,0.00027783,2]
[424294689,1780755049000,-161.0,0.00027783,2]
[424294688,1780755049000,-200.0,0.00027783,2]
[424294690,1780755049000,-500.0,0.00027783,2]
[424294691,1780755049000,-500.0,0.00027783,2]
[424294716,1780755049000,-600.0,0.00028,2]
[424294719,1780755049000,-1399.73,0.000282,14]
[424294717,1780755049000,-215.80795776,0.00028,10]
[424294752,1780755049000,-907.09,0.00028756,7]
[424294753,1780755049000,-3642.0,0.00028776,2]
[424294755,1780755049000,-900.38,0.00028788,30]
[424294754,1780755049000,-419.0,0.00028776,2]
[424294756,1780755049000,-907.09,0.00028788,30]
[424294759,1780755049000,-3357.1,0.00028797,7]
[424294758,1780755049000,-3562.16,0.00028797,7]
[424294766,1780755049000,-2000.0,0.00028826,2]
[424294767,1780755049000,-2000.0,0.00028826,2]
[424294768,1780755049000,-1068.4,0.00028826,2]
[424294765,1780755049000,-907.09,0.0002882,2]
[424294760,1780755049000,-1880.54,0.00028797,7]
[424294761,1780755049000,-3598.13,0.00028797,7]
[424294764,1780755049000,-900.38,0.0002882,2]
[424294762,1780755049000,-3331.64,0.00028797,7]
[424294763,1780755049000,-215.80795776,0.000288,10]
[424294770,1780755049000,-1000.0,0.00028826,2]
[424294769,1780755049000,-1166.44,0.00028826,2]
[424294772,1780755049000,-1000.0,0.00028826,2]
[424294775,1780755049000,-192.00656101,0.00028826,2]
[424294771,1780755049000,-1000.0,0.00028826,2]
[424294773,1780755049000,-1000.0,0.00028826,2]
[424294777,1780755049000,-2000.0,0.00028826,2]
[424294774,1780755049000,-632.08,0.00028826,2]
[424294718,1780755049000,-279.65988658,0.00028144,2]
[424294749,1780755049000,-923.51838061,0.00028726,2]
[424294750,1780755049000,-699.0,0.00028739,3]
[424294776,1780755049000,-2000.0,0.00028826,2]
[424294751,1780755049000,-900.38,0.00028756,7]
[424294748,1780755049000,-907.09,0.00028725,2]
[424294727,1780755049000,-168.33,0.00028493,2]
[424294728,1780755049000,-1032.54,0.00028614,7]
[424294734,1780755049000,-3598.13,0.0002863,30]
[424294735,1780755049000,-907.09,0.0002863,2]
[424294733,1780755049000,-1880.54,0.0002863,30]
[424294726,1780755049000,-14184.8,0.00028493,7]
[424294732,1780755049000,-3357.1,0.0002863,30]
[424294731,1780755049000,-3562.16,0.0002863,30]
[424294729,1780755049000,-1877.15,0.0002863,30]
[424294725,1780755049000,-300.0,0.00028493,14]
[424294730,1780755049000,-900.38,0.0002863,2]
[424294724,1780755049000,-150.0,0.00028493,2]
[424294736,1780755049000,-3331.64,0.0002863,30]
[424294757,1780755049000,-1877.15,0.00028797,7]
[424294745,1780755049000,-907.09,0.00028693,30]
[424294743,1780755049000,-1340.0,0.00028684,2]
[424294737,1780755049000,-279.65988658,0.00028643,2]
[424294741,1780755049000,-151.0,0.0002868,2]
[424294746,1780755049000,-4241.46,0.000287,7]
[424294744,1780755049000,-900.38,0.00028693,30]
[424294740,1780755049000,-907.09,0.00028661,7]
[424294738,1780755049000,-152.0,0.00028643,3]
[424294747,1780755049000,-900.38,0.00028725,2]
[424294739,1780755049000,-900.38,0.00028661,7]
[424294742,1780755049000,-1326.0,0.00028684,2]
[424294809,1780755050000,-1000.0,0.00028826,2]
[424294810,1780755050000,-1000.0,0.00028826,2]
[424294808,1780755050000,-1000.0,0.00028826,2]
[424294811,1780755050000,-1000.0,0.00028826,2]
[424294813,1780755050000,-1000.0,0.00028826,2]
[424294807,1780755050000,-1000.0,0.00028826,2]
[424294814,1780755050000,-1000.0,0.00028826,2]
[424294812,1780755050000,-1000.0,0.00028826,2]
[424294815,1780755050000,-1000.0,0.00028826,2]
[424294805,1780755050000,-1000.0,0.00028826,2]
[424294816,1780755050000,-1000.0,0.00028826,2]
[424294828,1780755050000,-260.0,0.00028861,2]
[424294817,1780755050000,-1000.0,0.00028826,2]
[424294820,1780755050000,-1000.0,0.00028826,2]
[424294823,1780755050000,-900.38,0.00028852,7]
[424294824,1780755050000,-907.09,0.00028852,7]
[424294829,1780755050000,-10000.0,0.00028865,2]
[424294821,1780755050000,-248.42,0.00028826,2]
[424294822,1780755050000,-201.87910633,0.0002885,2]
[424294826,1780755050000,-1170.61867066,0.00028861,2]
[424294827,1780755050000,-234.12373413,0.00028861,2]
[424294825,1780755050000,-150.0,0.00028855,2]
[424294806,1780755050000,-1000.0,0.00028826,2]
[424294818,1780755050000,-1000.0,0.00028826,2]
[424294798,1780755050000,-1000.0,0.00028826,2]
[424294789,1780755050000,-2000.0,0.00028826,2]
[424294803,1780755050000,-1000.0,0.00028826,2]
[424294831,1780755050000,-900.38,0.00028883,30]
[424294780,1780755050000,-2000.0,0.00028826,2]
[424294779,1780755050000,-2000.0,0.00028826,2]
[424294778,1780755050000,-2000.0,0.00028826,2]
[424294786,1780755050000,-2000.0,0.00028826,2]
[424294781,1780755050000,-2000.0,0.00028826,2]
[424294787,1780755050000,-2000.0,0.00028826,2]
[424294784,1780755050000,-2000.0,0.00028826,2]
[424294785,1780755050000,-2000.0,0.00028826,2]
[424294791,1780755050000,-2000.0,0.00028826,2]
[424294783,1780755050000,-2000.0,0.00028826,2]
[424294804,1780755050000,-1000.0,0.00028826,2]
[424294790,1780755050000,-720.92,0.00028826,2]
[424294782,1780755050000,-2000.0,0.00028826,2]
[424294792,1780755050000,-2000.0,0.00028826,2]
[424294794,1780755050000,-609.79,0.00028826,2]
[424294795,1780755050000,-1000.0,0.00028826,2]
[424294793,1780755050000,-2000.0,0.00028826,2]
[424294800,1780755050000,-1000.0,0.00028826,2]
[424294802,1780755050000,-1000.0,0.00028826,2]
[424294796,1780755050000,-1000.0,0.00028826,2]
[424294799,1780755050000,-1000.0,0.00028826,2]
[424294797,1780755050000,-1000.0,0.00028826,2]
[424294801,1780755050000,-1000.0,0.00028826,2]
[424294788,1780755050000,-2000.0,0.00028826,2]
[424294840,1780755050000,-2044.702611,0.000289,2]
[424294819,1780755050000,-1000.0,0.00028826,2]
[424294841,1780755050000,-5334.16371306,0.000289,2]
[424294858,1780755050000,-361.23729304,0.00028965,2]
[424294864,1780755050000,-194.000028,0.00028971,2]
[424294863,1780755050000,-167.10788207,0.00028971,2]
[424294862,1780755050000,-179.97120457,0.00028971,2]
[424294861,1780755050000,-311.46408666,0.00028965,2]
[424294867,1780755050000,-404.98580364,0.00028985,2]
[424294866,1780755050000,-907.09,0.00028979,30]
[424294875,1780755050000,-462.5,0.00029,2]
[424294868,1780755050000,-340.4691317,0.00028985,2]
[424294876,1780755050000,-939.18,0.00029,2]
[424294874,1780755050000,-238.37845884,0.00028985,2]
[424294859,1780755050000,-329.34172835,0.00028965,2]
[424294870,1780755050000,-215.78930977,0.00028985,2]
[424294869,1780755050000,-397.46662173,0.00028985,2]
[424294877,1780755050000,-150.0,0.00029,2]
[424294873,1780755050000,-367.34836471,0.00028985,2]
[424294871,1780755050000,-368.19114833,0.00028985,2]
[424294880,1780755050000,-486.01,0.00029,2]
[424294879,1780755050000,-150.0,0.00029,2]
[424294882,1780755050000,-930.03,0.00029,2]
[424294883,1780755050000,-200.0,0.00029,2]
[424294881,1780755050000,-1000.0,0.00029,2]
[424294884,1780755050000,-200.0,0.00029,2]
[424294832,1780755050000,-907.09,0.00028883,30]
[424294872,1780755050000,-367.12874517,0.00028985,2]
[424294854,1780755050000,-3357.1,0.00028964,2]
[424294878,1780755050000,-1961.83,0.00029,2]
[424294860,1780755050000,-349.29448624,0.00028965,2]
[424294856,1780755050000,-3598.13,0.00028964,2]
[424294830,1780755050000,-1227.0,0.00028866,2]
[424294834,1780755050000,-198.18975306,0.00028892,2]
[424294833,1780755050000,-279.65988658,0.00028892,2]
[424294835,1780755050000,-1399.73,0.000289,14]
[424294838,1780755050000,-2044.702611,0.000289,2]
[424294839,1780755050000,-5334.16371306,0.000289,2]
[424294837,1780755050000,-5334.16371308,0.000289,2]
[424294842,1780755050000,-2044.702611,0.000289,2]
[424294843,1780755050000,-900.38,0.00028915,2]
[424294885,1780755050000,-200.0,0.00029,2]
[424294848,1780755050000,-614.04,0.00028942,2]
[424294836,1780755050000,-1908.54,0.000289,7]
[424294850,1780755050000,-907.09,0.00028947,7]
[424294857,1780755050000,-3331.64,0.00028964,2]
[424294865,1780755050000,-900.38,0.00028979,30]
[424294855,1780755050000,-1880.54,0.00028964,2]
[424294852,1780755050000,-1877.15,0.00028964,2]
[424294853,1780755050000,-3562.16,0.00028964,2]
[424294849,1780755050000,-900.38,0.00028947,7]
[424294851,1780755050000,-265.88118116,0.00028962,4]
[424294845,1780755050000,-1110.0,0.00028942,2]
[424294846,1780755050000,-1000.0,0.00028942,2]
[424294844,1780755050000,-907.09,0.00028915,2]
[424294847,1780755050000,-1000.0,0.00028942,2]
[424294929,1780755051000,-215.80795776,0.00029,7]
[424294920,1780755051000,-158.0,0.00029,4]
[424294930,1780755051000,-1366.0,0.00029,7]
[424294925,1780755051000,-158.0,0.00029,4]
[424294926,1780755051000,-158.0,0.00029,4]
[424294927,1780755051000,-158.0,0.00029,4]
[424294921,1780755051000,-158.0,0.00029,4]
[424294919,1780755051000,-158.0,0.00029,4]
[424294922,1780755051000,-158.0,0.00029,4]
[424294923,1780755051000,-158.0,0.00029,4]
[424294928,1780755051000,-215.80795776,0.00029,30]
[424294937,1780755051000,-208.26081187,0.00029008,2]
[424294924,1780755051000,-158.0,0.00029,4]
[424294940,1780755051000,-307.70793271,0.00029008,2]
[424294943,1780755051000,-379.3197524,0.00029008,2]
[424294938,1780755051000,-333.54133252,0.00029008,2]
[424294935,1780755051000,-333.72904415,0.00029008,2]
[424294936,1780755051000,-351.39014633,0.00029008,2]
[424294931,1780755051000,-1125.0,0.00029,2]
[424294932,1780755051000,-527.14288805,0.00029,2]
[424294934,1780755051000,-500.0,0.00029,2]
[424294933,1780755051000,-500.0,0.00029,2]
[424294944,1780755051000,-367.31468609,0.00029008,2]
[424294941,1780755051000,-209.50685496,0.00029008,2]
[424294945,1780755051000,-332.09281259,0.00029008,2]
[424294942,1780755051000,-377.12580138,0.00029008,2]
[424294952,1780755051000,-175.00363526,0.00029008,2]
[424294917,1780755051000,-165.0,0.00029,4]
[424294939,1780755051000,-368.47090786,0.00029008,2]
[424294918,1780755051000,-158.0,0.00029,4]
[424294887,1780755051000,-500.0,0.00029,2]
[424294908,1780755051000,-500.0,0.00029,2]
[424294888,1780755051000,-500.0,0.00029,2]
[424294890,1780755051000,-2000.0,0.00029,2]
[424294889,1780755051000,-2000.0,0.00029,2]
[424294948,1780755051000,-175.30836802,0.00029008,2]
[424294886,1780755051000,-265.75,0.00029,2]
[424294891,1780755051000,-2000.0,0.00029,2]
[424294892,1780755051000,-2000.0,0.00029,2]
[424294896,1780755051000,-754.08,0.00029,2]
[424294901,1780755051000,-1000.0,0.00029,2]
[424294900,1780755051000,-1000.0,0.00029,2]
[424294894,1780755051000,-2000.0,0.00029,2]
[424294893,1780755051000,-2000.0,0.00029,2]
[424294897,1780755051000,-1000.0,0.00029,2]
[424294916,1780755051000,-157.0,0.00029,4]
[424294902,1780755051000,-1000.0,0.00029,2]
[424294898,1780755051000,-1000.0,0.00029,2]
[424294904,1780755051000,-1000.0,0.00029,2]
[424294913,1780755051000,-157.0,0.00029,4]
[424294914,1780755051000,-157.0,0.00029,4]
[424294912,1780755051000,-157.0,0.00029,4]
[424294905,1780755051000,-1000.0,0.00029,2]
[424294915,1780755051000,-157.0,0.00029,4]
[424294903,1780755051000,-1000.0,0.00029,2]
[424294909,1780755051000,-159.0,0.00029,4]
[424294911,1780755051000,-160.0,0.00029,2]
[424294906,1780755051000,-1000.0,0.00029,2]
[424294907,1780755051000,-936.84,0.00029,2]
[424294910,1780755051000,-157.0,0.00029,4]
[424294899,1780755051000,-1000.0,0.00029,2]
[424294951,1780755051000,-216.98403292,0.00029008,2]
[424294895,1780755051000,-1967.05,0.00029,2]
[424294946,1780755051000,-218.61463713,0.00029008,2]
[424294980,1780755051000,-189.56678385,0.0002903,2]
[424294988,1780755051000,-397.99171732,0.0002903,2]
[424294983,1780755051000,-327.71880563,0.0002903,2]
[424294981,1780755051000,-160.62886321,0.0002903,2]
[424294987,1780755051000,-338.25772762,0.0002903,2]
[424294992,1780755051000,-900.38,0.00029042,7]
[424294982,1780755051000,-301.26545663,0.0002903,2]
[424294990,1780755051000,-316.18300225,0.0002903,2]
[424294986,1780755051000,-190.99720698,0.0002903,2]
[424294984,1780755051000,-191.32950821,0.0002903,2]
[424294994,1780755051000,-900.38,0.00029074,30]
[424294998,1780755051000,-201.0,0.00029112,15]
[424294996,1780755051000,-900.38,0.00029105,2]
[424294997,1780755051000,-907.09,0.00029105,2]
[424294999,1780755051000,-300.0,0.0002913,7]
[424295000,1780755051000,-1877.15,0.00029132,30]
[424295003,1780755051000,-1880.54,0.00029132,30]
[424294995,1780755051000,-907.09,0.00029074,30]
[424295002,1780755051000,-3357.1,0.00029132,30]
[424295001,1780755051000,-3562.16,0.00029132,30]
[424295004,1780755051000,-3598.13,0.00029132,30]
[424295006,1780755051000,-900.38,0.00029137,7]
[424295011,1780755051000,-4241.46,0.000292,7]
[424295005,1780755051000,-3331.64,0.00029132,30]
[424295007,1780755051000,-907.09,0.00029137,7]
[424295009,1780755051000,-900.38,0.00029169,30]
[424295010,1780755051000,-907.09,0.00029169,30]
[424295012,1780755051000,-900.38,0.00029201,2]
[424294949,1780755051000,-418.0085334,0.00029008,2]
[424294991,1780755051000,-307.78745423,0.0002903,2]
[424294985,1780755051000,-193.77076756,0.0002903,2]
[424295008,1780755051000,-279.65988658,0.00029141,2]
[424294989,1780755051000,-237.62669559,0.0002903,2]
[424294993,1780755051000,-907.09,0.00029042,7]
[424294950,1780755051000,-339.59931924,0.00029008,2]
[424294953,1780755051000,-214.35175309,0.00029008,2]
[424294955,1780755051000,-365.58998941,0.00029008,2]
[424294947,1780755051000,-306.89799575,0.00029008,2]
[424294954,1780755051000,-300.07045574,0.00029008,2]
[424294960,1780755051000,-301.20572056,0.0002903,2]
[424294961,1780755051000,-337.04563877,0.0002903,2]
[424294966,1780755051000,-774.61478688,0.0002903,2]
[424294964,1780755051000,-335.19687602,0.0002903,2]
[424294962,1780755051000,-306.67414245,0.0002903,2]
[424294963,1780755051000,-348.78595624,0.0002903,2]
[424294965,1780755051000,-843.41856877,0.0002903,2]
[424294957,1780755051000,-315.71877693,0.00029008,2]
[424294956,1780755051000,-337.14188999,0.00029008,2]
[424294959,1780755051000,-907.09,0.0002901,2]
[424294958,1780755051000,-900.38,0.0002901,2]
[424294976,1780755051000,-694.40242424,0.0002903,2]
[424294972,1780755051000,-402.78536409,0.0002903,2]
[424294978,1780755051000,-166.00801039,0.0002903,2]
[424294969,1780755051000,-307.83310308,0.0002903,2]
[424294974,1780755051000,-361.60642446,0.0002903,2]
[424294967,1780755051000,-786.47569582,0.0002903,2]
[424294971,1780755051000,-472.94885379,0.0002903,2]
[424294977,1780755051000,-175.78139797,0.0002903,2]
[424294979,1780755051000,-247.60686755,0.0002903,2]
[424294968,1780755051000,-342.7753411,0.0002903,2]
[424294975,1780755051000,-323.70237479,0.0002903,2]
[424294970,1780755051000,-155.58427189,0.0002903,2]
[424294973,1780755051000,-237.93976967,0.0002903,2]
[424295038,1780755052000,-204.0,0.0002935,30]
[424295036,1780755052000,-360.0,0.0002935,30]
[424295042,1780755052000,-150.0,0.00029534,2]
[424295041,1780755052000,-1908.54,0.000295,7]
[424295047,1780755052000,-993.9,0.000296,7]
[424295050,1780755052000,-699.0,0.00029807,4]
[424295057,1780755052000,-150.0,0.00029811,7]
[424295049,1780755052000,-4241.46,0.000297,7]
[424295053,1780755052000,-150.0,0.00029811,7]
[424295048,1780755052000,-279.65988658,0.00029639,2]
[424295043,1780755052000,-151.0,0.00029574,2]
[424295060,1780755052000,-150.0,0.00029811,7]
[424295055,1780755052000,-150.0,0.00029811,7]
[424295058,1780755052000,-150.0,0.00029811,7]
[424295051,1780755052000,-150.0,0.00029811,7]
[424295054,1780755052000,-150.0,0.00029811,7]
[424295056,1780755052000,-150.0,0.00029811,7]
[424295059,1780755052000,-203.77673036,0.00029811,7]
[424295064,1780755052000,-310.97486785,0.00029835,2]
[424295066,1780755052000,-467.19612998,0.00029835,2]
[424295069,1780755052000,-181.10671764,0.00029849,7]
[424295070,1780755052000,-607.47870546,0.00029855,2]
[424295033,1780755052000,-333.0,0.0002935,30]
[424295052,1780755052000,-150.0,0.00029811,7]
[424295035,1780755052000,-1918.0,0.0002935,30]
[424295029,1780755052000,-2972.0,0.00029339,30]
[424295039,1780755052000,-279.65988658,0.0002939,2]
[424295065,1780755052000,-523.94172935,0.00029835,2]
[424295014,1780755052000,-900.48,0.00029232,7]
[424295017,1780755052000,-200.0,0.00029292,2]
[424295016,1780755052000,-699.0,0.00029273,4]
[424295015,1780755052000,-907.22,0.00029232,7]
[424295018,1780755052000,-1877.15,0.00029299,7]
[424295013,1780755052000,-907.09,0.00029201,2]
[424295019,1780755052000,-3562.16,0.00029299,7]
[424295020,1780755052000,-3357.1,0.00029299,7]
[424295021,1780755052000,-1880.54,0.00029299,7]
[424295022,1780755052000,-3598.13,0.00029299,7]
[424295030,1780755052000,-4110.0,0.00029339,30]
[424295032,1780755052000,-2510.0,0.0002935,30]
[424295028,1780755052000,-675.0,0.00029339,30]
[424295031,1780755052000,-1116.0,0.00029342,30]
[424295025,1780755052000,-206.13905836,0.0002933,7]
[424295026,1780755052000,-936.0,0.00029339,30]
[424295027,1780755052000,-1092.0,0.00029339,30]
[424295023,1780755052000,-3331.64,0.00029299,7]
[424295024,1780755052000,-400.0,0.00029317,30]
[424295034,1780755052000,-353.0,0.0002935,30]
[424295044,1780755052000,-399.0,0.00029581,2]
[424295046,1780755052000,-1363.0,0.0002959,2]
[424295045,1780755052000,-757.0,0.00029588,2]
[424295037,1780755052000,-786.0,0.0002935,30]
[424295040,1780755052000,-1399.73,0.000295,14]
[424295062,1780755052000,-502.7803597,0.00029811,7]
[424295061,1780755052000,-150.0,0.00029811,7]
[424295063,1780755052000,-494.01259252,0.00029835,2]
[424295098,1780755052000,-460.34699363,0.00029878,2]
[424295102,1780755052000,-509.39897886,0.00029878,2]
[424295096,1780755052000,-498.13921889,0.00029878,2]
[424295100,1780755052000,-216.9253834,0.00029878,2]
[424295106,1780755052000,-548.38498411,0.00029878,2]
[424295107,1780755052000,-505.71283499,0.00029878,2]
[424295105,1780755052000,-428.70350619,0.00029878,2]
[424295103,1780755052000,-433.96806585,0.00029878,2]
[424295108,1780755052000,-450.10568361,0.00029878,2]
[424295101,1780755052000,-627.0128001,0.00029878,2]
[424295104,1780755052000,-350.00727052,0.00029878,2]
[424295099,1780755052000,-350.61673604,0.00029878,2]
[424295111,1780755052000,-279.65988658,0.00029888,2]
[424295116,1780755052000,-460.01121367,0.00029901,2]
[424295109,1780755052000,-473.57816539,0.00029878,2]
[424295114,1780755052000,-505.56845815,0.00029901,2]
[424295112,1780755052000,-451.80858084,0.00029901,2]
[424295115,1780755052000,-541.85593956,0.00029901,2]
[424295117,1780755052000,-523.17893436,0.00029901,2]
[424295120,1780755052000,-1265.12785315,0.00029901,2]
[424295119,1780755052000,-502.79531403,0.00029901,2]
[424295121,1780755052000,-257.75996548,0.00029901,2]
[424295118,1780755052000,-190.73708612,0.00029901,2]
[424295067,1780755052000,-502.7803597,0.00029844,7]
[424295113,1780755052000,-217.13289713,0.00029901,2]
[424295097,1780755052000,-437.22927426,0.00029878,2]
[424295110,1780755052000,-150.0,0.0002988,7]
[424295088,1780755052000,-416.52162374,0.00029878,2]
[424295068,1780755052000,-150.0,0.00029845,7]
[424295095,1780755052000,-550.97202914,0.00029878,2]
[424295072,1780755052000,-596.19993259,0.00029855,2]
[424295079,1780755052000,-202.62613253,0.00029855,2]
[424295081,1780755052000,-150.0,0.00029856,7]
[424295074,1780755052000,-552.28672249,0.00029855,2]
[424295076,1780755052000,-207.34730567,0.00029855,2]
[424295082,1780755052000,-150.0,0.00029863,2]
[424295071,1780755052000,-510.70369755,0.00029855,2]
[424295078,1780755052000,-551.02254707,0.00029855,2]
[424295080,1780755052000,-476.75691769,0.00029855,2]
[424295077,1780755052000,-550.69311776,0.00029855,2]
[424295073,1780755052000,-431.57861953,0.00029855,2]
[424295087,1780755052000,-527.0852195,0.00029878,2]
[424295086,1780755052000,-500.59356622,0.00029878,2]
[424295075,1780755052000,-232.1125996,0.00029855,2]
[424295090,1780755052000,-293.61014638,0.00029878,2]
[424295089,1780755052000,-500.31199878,0.00029878,2]
[424295094,1780755052000,-568.9796286,0.00029878,2]
[424295093,1780755052000,-565.68870208,0.00029878,2]
[424295083,1780755052000,-300.0,0.00029863,14]
[424295091,1780755052000,-461.56189907,0.00029878,2]
[424295092,1780755052000,-419.01370992,0.00029878,2]
[424295084,1780755052000,-150.0,0.00029864,7]
[424295085,1780755052000,-502.7803597,0.00029878,7]
[424295156,1780755053000,-233.21368835,0.00029901,2]
[424295158,1780755053000,-596.98757597,0.00029901,2]
[424295160,1780755053000,-474.27450337,0.00029901,2]
[424295167,1780755053000,-502.7803597,0.00029945,7]
[424295166,1780755053000,-150.0,0.00029934,7]
[424295150,1780755053000,-451.89818495,0.00029901,2]
[424295157,1780755053000,-507.38659142,0.00029901,2]
[424295155,1780755053000,-285.70513705,0.00029901,2]
[424295148,1780755053000,-379.1335677,0.00029901,2]
[424295147,1780755053000,-495.21373509,0.00029901,2]
[424295162,1780755053000,-150.0,0.00029902,7]
[424295159,1780755053000,-475.25339117,0.00029901,2]
[424295164,1780755053000,-150.0,0.00029914,7]
[424295176,1780755053000,-1623.939,0.0003,2]
[424295163,1780755053000,-502.7803597,0.00029911,7]
[424295161,1780755053000,-461.68118134,0.00029901,2]
[424295179,1780755053000,-164.5,0.0003,2]
[424295180,1780755053000,-215.80795776,0.0003,30]
[424295169,1780755053000,-150.0,0.00029949,7]
[424295168,1780755053000,-150.0,0.00029947,7]
[424295170,1780755053000,-150.0,0.00029969,7]
[424295171,1780755053000,-150.0,0.00029971,7]
[424295173,1780755053000,-150.0,0.00029983,7]
[424295175,1780755053000,-368.98003904,0.0003,30]
[424295172,1780755053000,-502.7803597,0.00029978,7]
[424295145,1780755053000,-295.30675901,0.00029901,2]
[424295165,1780755053000,-150.0,0.00029918,7]
[424295146,1780755053000,-246.87854796,0.00029901,2]
[424295177,1780755053000,-161.0,0.0003,14]
[424295153,1780755053000,-387.54153512,0.00029901,2]
[424295129,1780755053000,-514.16301165,0.00029901,2]
[424295122,1780755053000,-225.50657957,0.00029901,2]
[424295128,1780755053000,-201.24960285,0.00029901,2]
[424295127,1780755053000,-200.57660548,0.00029901,2]
[424295125,1780755053000,-1161.92218033,0.00029901,2]
[424295124,1780755053000,-244.75344391,0.00029901,2]
[424295126,1780755053000,-1179.71354373,0.00029901,2]
[424295123,1780755053000,-515.859271,0.00029901,2]
[424295132,1780755053000,-165.09456622,0.00029901,2]
[424295130,1780755053000,-268.91915586,0.00029901,2]
[424295135,1780755053000,-709.42328068,0.00029901,2]
[424295131,1780755053000,-461.74965461,0.00029901,2]
[424295149,1780755053000,-321.25772642,0.00029901,2]
[424295134,1780755053000,-311.16854378,0.00029901,2]
[424295133,1780755053000,-173.49544285,0.00029901,2]
[424295141,1780755053000,-485.55356219,0.00029901,2]
[424295140,1780755053000,-542.40963669,0.00029901,2]
[424295138,1780755053000,-221.5498787,0.00029901,2]
[424295139,1780755053000,-475.87953934,0.00029901,2]
[424295137,1780755053000,-225.35365433,0.00029901,2]
[424295143,1780755053000,-351.56279593,0.00029901,2]
[424295151,1780755053000,-491.57820845,0.00029901,2]
[424295152,1780755053000,-382.65901642,0.00029901,2]
[424295144,1780755053000,-332.01602078,0.00029901,2]
[424295154,1780755053000,-381.99441396,0.00029901,2]
[424295142,1780755053000,-1041.60363635,0.00029901,2]
[424295136,1780755053000,-604.17804614,0.00029901,2]
[424295174,1780755053000,-150.0,0.00029992,7]
[424295239,1780755053000,-150.0,0.00030137,2]
[424295181,1780755053000,-200.0,0.0003,2]
[424295208,1780755053000,-2500.0,0.00030137,120]
[424295214,1780755053000,-377.87321982,0.00030137,2]
[424295222,1780755053000,-151.89843089,0.00030137,5]
[424295216,1780755053000,-500.0,0.00030137,3]
[424295217,1780755053000,-500.0,0.00030137,3]
[424295223,1780755053000,-279.65988658,0.00030137,2]
[424295225,1780755053000,-317.15389789,0.00030137,2]
[424295221,1780755053000,-500.0,0.00030137,3]
[424295218,1780755053000,-500.0,0.00030137,3]
[424295224,1780755053000,-279.65655325,0.00030137,30]
[424295220,1780755053000,-150.0,0.00030137,2]
[424295215,1780755053000,-566.80982973,0.00030137,2]
[424295209,1780755053000,-1014.58,0.00030137,2]
[424295219,1780755053000,-500.0,0.00030137,3]
[424295227,1780755053000,-939.90693594,0.00030137,120]
[424295229,1780755053000,-930.02476734,0.00030137,120]
[424295233,1780755053000,-930.00000015,0.00030137,120]
[424295230,1780755053000,-930.00123837,0.00030137,120]
[424295231,1780755053000,-930.00006192,0.00030137,120]
[424295235,1780755053000,-150.0,0.00030137,2]
[424295236,1780755053000,-150.0,0.00030137,2]
[424295232,1780755053000,-930.0000031,0.00030137,120]
[424295228,1780755053000,-930.4953468,0.00030137,120]
[424295234,1780755053000,-930.00000001,0.00030137,120]
[424295238,1780755053000,-150.0,0.00030137,2]
[424295178,1780755053000,-197.2,0.0003,2]
[424295226,1780755053000,-1128.13871878,0.00030137,120]
[424295210,1780755053000,-1000.0,0.00030137,120]